fUST/lending_fUST_20240602
["ID","MTS","AMOUNT","RATE_DAILY","PERIOD"]
[328386935,1717314647621,-15536.98,0.00021917,2]
[328386936,1717314647630,-532.10312872,0.00021917,2]
[328386937,1717314647639,-502.0988259,0.00021917,2]
[328386938,1717314647648,-826.61,0.00021917,2]
[328386939,1717314647657,-826.61,0.00021917,2]
[328386940,1717314647667,-500.0,0.00021917,2]
[328386941,1717314647675,-826.61,0.00021917,2]
[328386942,1717314647686,-826.61,0.00021917,2]
[328386943,1717314647695,-826.61,0.00021917,2]
[328386944,1717314647704,-826.61,0.00021917,2]
[328386945,1717314647713,-826.61,0.00021917,2]
[328386946,1717314647724,-826.61,0.00021917,2]
[328386947,1717314647734,-826.61,0.00021917,2]
[328386948,1717314647746,-826.61,0.00021917,2]
[328386949,1717314647756,-826.61,0.00021917,2]
[328386950,1717314647766,-500.0,0.00021917,2]
[328386951,1717314647774,-826.61,0.00021917,2]
[328386952,1717314647783,-500.0,0.00021917,2]
[328386953,1717314647792,-500.70405953,0.00021917,2]
[328386954,1717314647801,-500.0,0.00021917,2]
[328386955,1717314647810,-779.63,0.00021917,2]
[328386956,1717314647819,-500.0,0.00021917,2]
[328386957,1717314647827,-500.0,0.00021917,2]
[328386958,1717314647836,-1005.8,0.00021917,2]
[328386959,1717314647845,-500.69643431,0.00021917,2]
[328386960,1717314647854,-235.54784823,0.00021917,2]
[328386961,1717314647864,-1384.57,0.00021917,2]
[328386962,1717314647873,-500.0,0.00021917,2]
[328386963,1717314647882,-500.0,0.00021917,2]
[328386964,1717314647891,-500.0,0.00021917,2]
[328386965,1717314647900,-501.64169217,0.00021917,2]
[328386966,1717314647909,-500.80663323,0.00021917,2]
[328386967,1717314647918,-3243.48,0.00021917,2]
[328386968,1717314647927,-2564.36,0.00021917,2]
[328386969,1717314647936,-500.0,0.00021917,2]
[328386970,1717314647945,-1556.24,0.00021917,2]
[328386971,1717314647954,-500.0,0.00021917,2]
[328386972,1717314647963,-500.0,0.00021917,2]
[328386973,1717314647972,-500.0,0.00021917,2]
[328386974,1717314647981,-500.0,0.00021917,2]
[328386975,1717314647990,-500.0,0.00021917,2]
[328386976,1717314647999,-500.0,0.00021917,2]
[328386977,1717314648008,-500.0,0.00021917,2]
[328386978,1717314648017,-500.0,0.00021917,2]
[328386979,1717314648026,-1171.73,0.00021917,2]
[328386980,1717314648035,-517.76580544,0.00021917,2]
[328386981,1717314648044,-501.63068833,0.00021917,2]
[328386982,1717314648053,-500.0,0.00021917,2]
[328386983,1717314648062,-501.11787764,0.00021917,2]
[328386984,1717314648071,-500.0,0.00021917,2]
[328386985,1717314648080,-1569.4,0.00021917,2]
[328386986,1717314648089,-500.0,0.00021917,2]
[328386987,1717314648099,-633.71155163,0.00021917,2]
[328386988,1717314648112,-922.42,0.00021917,2]
[328386989,1717314648123,-500.0,0.00021917,2]
[328386990,1717314648132,-6717.5,0.00021917,2]
[328386991,1717314648141,-500.0,0.00021917,2]
[328386992,1717314648150,-500.0,0.00021917,2]
[328386993,1717314648160,-500.0,0.00021917,2]
[328386994,1717314648169,-500.0,0.00021917,2]
[328386995,1717314648178,-500.0,0.00021917,2]
[328386996,1717314648189,-957.73,0.00021917,2]
[328386997,1717314648198,-530.29,0.00021917,2]
[328386998,1717314648208,-500.0,0.00021917,2]
[328386999,1717314648217,-25912.35,0.00021917,2]
[328387000,1717314648226,-1058.95,0.00021917,2]
[328387001,1717314648235,-1327.28,0.00021917,2]
[328387002,1717314648244,-502.04389602,0.00021917,2]
[328387003,1717314648338,-500.08,0.00021917,2]
[328387004,1717314648348,-500.0,0.00021917,2]
[328387005,1717314648357,-500.0,0.00021917,2]
[328387006,1717314648366,-500.0,0.00021917,2]
[328387007,1717314648374,-500.0,0.00021917,2]
[328387008,1717314648383,-3391.61,0.00021917,2]
[328387009,1717314648394,-642.48,0.00021917,2]
[328387010,1717314648403,-500.0,0.00021917,2]
[328387011,1717314648413,-500.0,0.00021917,2]
[328387012,1717314648422,-500.0,0.00021917,2]
[328387013,1717314648432,-500.0,0.00021917,2]
[328387014,1717314648443,-500.0,0.00021917,2]
[328387015,1717314648451,-500.0,0.00021917,2]
[328387016,1717314648461,-500.0,0.00021917,2]
[328387017,1717314648470,-500.0,0.00021917,2]
[328387018,1717314648479,-500.0,0.00021917,2]
[328387019,1717314648488,-497.16580847,0.00021917,2]
[328387020,1717314648497,-500.0,0.00021917,2]
[328387021,1717314648506,-794.13,0.00021917,2]
[328387022,1717314648515,-1185.91,0.00021917,2]
[328387023,1717314648524,-500.0,0.00021917,2]
[328387024,1717314648533,-500.0,0.00021917,2]
[328387025,1717314648542,-151.0,0.00021917,5]
[328387026,1717314648551,-500.0,0.00021917,2]
[328387027,1717314648561,-500.0,0.00021917,2]
[328387028,1717314648570,-2664.03,0.00021917,2]
[328387029,1717314648579,-1359.75,0.00021917,2]
[328387030,1717314648587,-151.0,0.00021917,5]
[328387031,1717314648596,-500.0,0.00021917,2]
[328387032,1717314648605,-500.0,0.00021917,2]
[328387033,1717314648614,-500.0,0.00021917,2]
[328387034,1717314648623,-500.0,0.00021917,2]
[328387035,1717314648632,-500.0,0.00021917,2]
[328387036,1717314648643,-500.0,0.00021917,2]
[328387037,1717314648653,-500.0,0.00021917,2]
[328387038,1717314648662,-261.75232167,0.00021917,2]
[328387039,1717314648671,-152.56028429,0.00021917,2]
[328387040,1717314648680,-804.18,0.00021917,2]
[328387041,1717314648691,-500.0,0.00021917,2]
[328387042,1717314648700,-500.0,0.00021917,2]
[328387043,1717314648709,-500.0,0.00021917,2]
[328387044,1717314648719,-500.0,0.00021917,2]
[328387045,1717314648728,-501.35216456,0.00021917,2]
[328387046,1717314648737,-500.18166125,0.00021917,2]
[328387047,1717314648746,-560.88973743,0.00021917,2]
[328387048,1717314648755,-166.666666,0.00021918,2]
[328387049,1717314648764,-626.66,0.00021999,2]
[328387050,1717314648773,-626.66,0.00021999,2]
[328387051,1717314648783,-4210.91,0.00021999,2]
[328387052,1717314648793,-4210.91,0.00021999,2]
[328387053,1717314648803,-4210.91,0.00021999,2]
[328387054,1717314648812,-4210.91,0.00021999,2]
[328387055,1717314648821,-826.61,0.00021999,2]
[328387056,1717314648831,-826.61,0.00021999,2]
[328387057,1717314648840,-826.61,0.00021999,2]
[328387058,1717314648850,-826.61,0.00021999,2]
[328387059,1717314648861,-155.0,0.00022,2]
[328387060,1717314648870,-268.4137407,0.00022,2]
[328387061,1717314648880,-12822.61784621,0.00022,2]
[328387062,1717314648889,-285.0,0.00022,2]
[328387063,1717314648898,-545.9840125,0.00022,2]
[328387064,1717314648908,-1000.0,0.00022,2]
[328387065,1717314648917,-292.065583,0.00022,2]
[328387066,1717314648927,-321.1133761,0.00022,2]
[328387067,1717314648937,-292.065583,0.00022,2]
[328387068,1717314648946,-110837.50719701,0.00022,2]
[328387069,1717314648971,-1012.2697971,0.00022,2]
[328387077,1717314746265,160.0,0.0003024,30]
[328387078,1717314778894,203.74317493,9.9e-05,2]
[328387081,1717315035112,3256.25628249,0.00030241,30]
[328387082,1717315052746,6111.09660037,0.00030241,30]
[328387084,1717315279184,685.62790104,9.999e-05,2]
[328387087,1717315649570,151.0,0.00030208,30]
[328387112,1717315832031,-339.5000166,0.00019999,2]
[328387113,1717315832088,-346.12788444,0.00019999,2]
[328387114,1717315832097,-6890.89011053,0.0002,2]
[328387115,1717315832107,-174.646733,0.00020752,2]
[328387116,1717315832116,-22892.94089772,0.00021,2]
[328387117,1717315832125,-153.0,0.000213,2]
[328387118,1717315832134,-153.0,0.000213,2]
[328387119,1717315832143,-153.0,0.000213,2]
[328387125,1717315832268,-153.0,0.000213,2]
[328387126,1717315832278,-153.0,0.000213,2]
[328387127,1717315832287,-153.0,0.000213,2]
[328387128,1717315832296,-153.0,0.000213,2]
[328387129,1717315832306,-638.38657046,0.00021339,2]
[328387130,1717315832315,-153.0,0.000214,2]
[328387131,1717315832324,-155.3541646,0.000214,2]
[328387132,1717315832333,-151.0,0.00021848,5]
[328387133,1717315832343,-4233.16048784,0.00021875,2]
[328387134,1717315832353,-1153.28512896,0.00021915,2]
[328387135,1717315832363,-1871.01679575,0.00021915,2]
[328387136,1717315832373,-425.23490123,0.00021915,2]
[328387137,1717315832382,-4006.71798143,0.00021915,2]
[328387138,1717315832393,-2505.45290604,0.00021915,2]
[328387139,1717315832403,-891.79443738,0.00021915,2]
[328387140,1717315832412,-371.62879169,0.00021915,2]
[328387141,1717315832422,-395.55514246,0.00021915,2]
[328387142,1717315832431,-215.95975088,0.00021915,2]
[328387143,1717315832442,-283.86669786,0.00021915,2]
[328387144,1717315832452,-528.89075591,0.00021915,2]
[328387145,1717315832463,-490.5000166,0.00021915,2]
[328387146,1717315832472,-328.26544087,0.00021915,2]
[328387147,1717315832481,-245.07172502,0.00021915,2]
[328387148,1717315832494,-397.08723811,0.00021915,2]
[328387170,1717315837975,-180.65812548,0.00021815,2]
[328387172,1717315837985,-180.65812548,0.00021816,2]
[328387174,1717315837994,-238.68374897,0.00021915,2]
[328387176,1717315838006,-619.69894878,0.00021915,2]
[328387178,1717315838017,-500.0,0.00021915,2]
[328387268,1717315843272,-180.65812548,0.00021817,2]
[328387270,1717315843282,-121.49037256,0.00021915,2]
[328387273,1717315843294,-4565.59106485,0.00021915,2]
[328387275,1717315843304,-7252.43238779,0.00021915,2]
[328387276,1717315843314,-1431.6608253,0.00021915,2]
[328387278,1717315843497,-1250.23254609,0.00021915,2]
[328387279,1717315843507,-155.37029912,0.00021915,2]
[328387280,1717315843516,-155.14029157,0.00021915,2]
[328387281,1717315843525,-313.49177115,0.00021915,2]
[328387282,1717315843534,-201.73985437,0.00021915,2]
[328387283,1717315843544,-1987.13539394,0.00021915,2]
[328387284,1717315843553,-3816.47512189,0.00021915,2]
[328387285,1717315843563,-1351.93473586,0.00021915,2]
[328387286,1717315843572,-286.02120034,0.00021915,2]
[328387287,1717315843581,-266.4208833,0.00021915,2]
[328387288,1717315843590,-397.08723811,0.00021915,2]
[328387289,1717315843602,-251.8143319,0.00021916,2]
[328387308,1717315846365,-248.1856681,0.00021916,2]
[328387309,1717315846375,-425.1864445,0.00021916,2]
[328387310,1717315846385,-157.2673874,0.00021916,2]
[328387311,1717315846397,-8.94658771,0.00021916,2]
[328387312,1717315846406,-413.2749431,0.00021916,2]
[328387313,1717315846418,-86.7250569,0.00021916,2]
[328387314,1717315846427,-396.95574651,0.00021916,2]
[328387315,1717315846436,-487.1919645,0.00021917,7]
[328387316,1717315846447,-3040.39570742,0.00021917,7]
[328387317,1717315945665,273.37336231,9.9e-05,2]
[328387318,1717315953608,273.37336231,9.9e-05,2]
[328387321,1717316309385,199.68490922,9.9e-05,2]
[328387328,1717316489794,685.62790104,9.999e-05,2]
[328387331,1717316807259,523.742837,9.999e-05,2]
[328387334,1717317012204,50718.57775319,0.00030218,30]
[328387335,1717317012814,387.37102231,9.9e-05,2]
[328387336,1717317013837,387.37102231,9.9e-05,2]
[328387337,1717317014277,387.37102231,9.9e-05,2]
[328387338,1717317015400,387.37102231,9.9e-05,2]
[328387339,1717317015838,387.37102231,9.9e-05,2]
[328387340,1717317016960,387.37102231,9.9e-05,2]
[328387341,1717317017410,387.37102231,9.9e-05,2]
[328387342,1717317017840,387.37102231,9.9e-05,2]
[328387343,1717317018280,387.37102231,9.9e-05,2]
[328387344,1717317019101,387.37102231,9.9e-05,2]
[328387345,1717317019253,387.37102231,9.9e-05,2]
[328387346,1717317019689,387.37102231,9.9e-05,2]
[328387347,1717317020131,387.37102231,9.9e-05,2]
[328387348,1717317020656,387.37102231,9.9e-05,2]
[328387349,1717317021176,387.37102231,9.9e-05,2]
[328387350,1717317022268,387.37102231,9.9e-05,2]
[328387351,1717317023411,387.37102231,9.9e-05,2]
[328387352,1717317023916,387.37102231,9.9e-05,2]
[328387353,1717317024355,387.37102231,9.9e-05,2]
[328387354,1717317024870,387.37102,9.9e-05,2]
[328387377,1717317032245,-685.62790104,0.00018899,2]
[328387378,1717317032256,-150.0,0.000189,2]
[328387379,1717317032266,-250.0,0.0001988,2]
[328387380,1717317032275,-3000.0,0.00020294,2]
[328387381,1717317032284,-172.977843,0.00020434,2]
[328387382,1717317032294,-275.4336992,0.00020708,2]
[328387383,1717317032303,-22892.94089772,0.00021615,2]
[328387384,1717317032312,-4233.16048784,0.00021616,2]
[328387385,1717317032321,-594.04593493,0.00021715,2]
[328387386,1717317032331,-17000.74238617,0.00021815,2]
[328387387,1717317032340,-2033.82676521,0.00021815,2]
[328387388,1717317032349,-15843.19244345,0.00021817,3]
[328387420,1717317038160,-2575.66855639,0.00021817,7]
[328387421,1717317038216,-326.08456874,0.00021817,7]
[328387422,1717317038228,-713.77734259,0.00021817,7]
[328387423,1717317038238,-633.96523704,0.00021817,3]
[328387424,1717317038280,-44080.26928913,0.00021817,3]
[328387425,1717317038292,-28330.57303038,0.00021817,3]
[328387426,1717317038302,-194.8022931,0.00021915,2]
[328387427,1717317038311,-156.7313012,0.00021915,2]
[328387428,1717317038321,-216.01852232,0.00021915,2]
[328387429,1717317038331,-156.68407224,0.00021915,2]
[328387430,1717317038341,-164.91341831,0.00021915,2]
[328387431,1717317038350,-317.0057363,0.00021915,2]
[328387432,1717317038361,-721.24150481,0.00021915,2]
[328387433,1717317038370,-284.12771659,0.00021915,2]
[328387434,1717317038379,-5027.40773513,0.00021915,2]
[328387435,1717317038388,-309.81411154,0.00021915,2]
[328387436,1717317038398,-309.81411154,0.00021915,2]
[328387437,1717317038407,-523.39571002,0.00021915,2]
[328387438,1717317038417,-500.0,0.00021916,2]
[328387439,1717317038587,-172.3094157,0.00021916,2]
[328387440,1717317038599,-7388.3767518,0.00021917,7]
[328387441,1717317038609,-503.17273302,0.00021917,2]
[328387442,1717317038618,-461.74457998,0.00021917,2]
[328387443,1717317038631,-507.99354221,0.00021917,2]
[328387444,1717317038640,-500.0,0.00021917,2]
[328387445,1717317038650,-534.85,0.00021917,2]
[328387446,1717317038660,-500.0,0.00021917,2]
[328387447,1717317038669,-2360.67,0.00021917,2]
[328387448,1717317038679,-500.0,0.00021917,2]
[328387449,1717317038688,-498.66982062,0.00021917,2]
[328387450,1717317038698,-507.48409639,0.00021917,2]
[328387451,1717317038707,-500.0,0.00021917,2]
[328387452,1717317038716,-705.01,0.00021917,2]
[328387453,1717317038726,-500.0,0.00021917,2]
[328387454,1717317038736,-500.0,0.00021917,2]
[328387455,1717317038746,-551.70862792,0.00021917,2]
[328387456,1717317038757,-502.9909537,0.00021917,2]
[328387457,1717317038766,-555.81,0.00021917,2]
[328387458,1717317038776,-500.0,0.00021917,2]
[328387459,1717317038785,-500.0,0.00021917,2]
[328387460,1717317038795,-500.0,0.00021917,2]
[328387461,1717317038805,-1207.53,0.00021917,2]
[328387462,1717317038815,-505.23142717,0.00021917,2]
[328387463,1717317038824,-500.0,0.00021917,2]
[328387464,1717317038835,-300.0,0.00021917,2]
[328387465,1717317038844,-1900.22,0.00021917,2]
[328387466,1717317038854,-511.70146969,0.00021917,2]
[328387467,1717317038863,-500.0,0.00021917,2]
[328387468,1717317038873,-500.0,0.00021917,2]
[328387469,1717317038883,-500.0,0.00021917,2]
[328387470,1717317038892,-500.0,0.00021917,2]
[328387471,1717317038902,-157.49331832,0.00021917,2]
[328387624,1717317041968,-62.0738896,0.00021917,2]
[328387625,1717317041978,-500.0,0.00021917,2]
[328387626,1717317041988,-500.0,0.00021917,2]
[328387627,1717317041998,-500.0,0.00021917,2]
[328387628,1717317042008,-223.58716434,0.00021917,2]
[328387629,1717317042019,-500.0,0.00021917,2]
[328387630,1717317042029,-500.0,0.00021917,2]
[328387631,1717317042039,-1202.18,0.00021917,2]
[328387632,1717317042049,-500.0,0.00021917,2]
[328387633,1717317042059,-505.01809239,0.00021917,2]
[328387634,1717317042069,-500.0,0.00021917,2]
[328387635,1717317042078,-274.3990616,0.00021917,2]
[328387636,1717317042088,-500.0,0.00021917,2]
[328387637,1717317042099,-590.75,0.00021917,2]
[328387638,1717317042108,-1537.29,0.00021917,2]
[328387639,1717317042119,-507.62,0.00021917,2]
[328387640,1717317042128,-737.62,0.00021917,2]
[328387641,1717317042138,-501.22885326,0.00021917,2]
[328387642,1717317042147,-500.0,0.00021917,2]
[328387643,1717317042158,-500.0,0.00021917,2]
[328387644,1717317042167,-500.0,0.00021917,2]
[328387645,1717317042176,-500.0,0.00021917,2]
[328387646,1717317042186,-500.0,0.00021917,2]
[328387647,1717317042196,-747.14,0.00021917,2]
[328387648,1717317042206,-500.0,0.00021917,2]
[328387649,1717317042215,-500.0,0.00021917,2]
[328387650,1717317042226,-500.0,0.00021917,2]
[328387651,1717317042236,-500.0,0.00021917,2]
[328387652,1717317042245,-500.0,0.00021917,2]
[328387653,1717317042257,-357.94047565,0.00021917,2]
[328387654,1717317042267,-917.82,0.00021917,2]
[328387655,1717317042277,-158.004158,0.00021917,2]
[328387656,1717317042286,-156.565641,0.00021917,2]
[328387657,1717317042296,-500.0,0.00021917,2]
[328387658,1717317042306,-500.0,0.00021917,2]
[328387659,1717317042316,-500.0,0.00021917,2]
[328387660,1717317042465,-500.0,0.00021917,2]
[328387661,1717317042476,-500.0,0.00021917,2]
[328387662,1717317042485,-500.0,0.00021917,2]
[328387663,1717317042495,-839.17,0.00021917,2]
[328387664,1717317042506,-500.0,0.00021917,2]
[328387665,1717317042515,-500.0,0.00021917,2]
[328387666,1717317042525,-500.0,0.00021917,2]
[328387667,1717317042534,-1027.64,0.00021917,2]
[328387668,1717317042544,-500.0,0.00021917,2]
[328387669,1717317042553,-500.0,0.00021917,2]
[328387670,1717317042562,-500.0,0.00021917,2]
[328387671,1717317042572,-1613.24,0.00021917,2]
[328387672,1717317042581,-729.27,0.00021917,2]
[328387673,1717317042590,-504.7,0.00021917,2]
[328387674,1717317042599,-590.10046247,0.00021917,2]
[328387675,1717317042613,-341.1795407,0.00021917,2]
[328387729,1717317043297,-45.43999683,0.00021917,2]
[328387730,1717317043306,-151.0,0.00021917,2]
[328387731,1717317043315,-151.0,0.00021917,2]
[328387732,1717317043325,-151.0,0.00021917,2]
[328387733,1717317043334,-1683.66,0.00021917,2]
[328387734,1717317043343,-500.0,0.00021917,2]
[328387735,1717317043352,-500.0,0.00021917,2]
[328387736,1717317043362,-500.0,0.00021917,2]
[328387737,1717317043371,-521.83,0.00021917,2]
[328387738,1717317043381,-500.0,0.00021917,2]
[328387739,1717317043390,-518.22,0.00021917,2]
[328387740,1717317043399,-556.73,0.00021917,2]
[328387741,1717317043408,-959.83,0.00021917,2]
[328387742,1717317043417,-618.74,0.00021917,2]
[328387743,1717317043426,-500.0,0.00021917,2]
[328387744,1717317043435,-500.0,0.00021917,2]
[328387745,1717317043444,-530.2,0.00021917,2]
[328387746,1717317043454,-500.0,0.00021917,2]
[328387747,1717317043463,-500.0,0.00021917,2]
[328387748,1717317043472,-643.26,0.00021917,2]
[328387749,1717317043482,-500.51423339,0.00021917,2]
[328387750,1717317043491,-730.78,0.00021917,2]
[328387751,1717317043500,-613.81,0.00021917,2]
[328387752,1717317043510,-500.0,0.00021917,2]
[328387753,1717317043519,-500.0,0.00021917,2]
[328387754,1717317043528,-500.0,0.00021917,2]
[328387755,1717317043537,-910.67,0.00021917,2]
[328387756,1717317043546,-500.0,0.00021917,2]
[328387757,1717317043555,-500.0,0.00021917,2]
[328387759,1717317043564,-500.0,0.00021917,2]
[328387761,1717317043574,-500.0,0.00021917,2]
[328387763,1717317043583,-2722.04,0.00021917,2]
[328387764,1717317043593,-500.0,0.00021917,2]
[328387765,1717317043602,-500.0,0.00021917,2]
[328387766,1717317043611,-910.08,0.00021917,2]
[328387767,1717317043620,-500.0,0.00021917,2]
[328387768,1717317043633,-500.0,0.00021917,2]
[328387769,1717317043642,-500.0,0.00021917,2]
[328387770,1717317043652,-500.0,0.00021917,2]
[328387771,1717317043661,-545.34,0.00021917,2]
[328387772,1717317043671,-509.79,0.00021917,2]
[328387773,1717317043680,-500.0,0.00021917,2]
[328387774,1717317043689,-500.0,0.00021917,2]
[328387775,1717317043698,-500.0,0.00021917,2]
[328387776,1717317043707,-1011.39,0.00021917,2]
[328387777,1717317043717,-500.0,0.00021917,2]
[328387778,1717317043726,-2455.04,0.00021917,2]
[328387779,1717317043735,-500.0,0.00021917,2]
[328387780,1717317043745,-774.57,0.00021917,2]
[328387781,1717317043754,-500.0,0.00021917,2]
[328387782,1717317043763,-151.0,0.00021917,2]
[328387783,1717317043772,-151.0,0.00021917,2]
[328387784,1717317043781,-500.0,0.00021917,2]
[328387785,1717317043791,-151.0,0.00021917,2]
[328387786,1717317043800,-151.0,0.00021917,2]
[328387787,1717317043810,-500.0,0.00021917,2]
[328387788,1717317043819,-500.0,0.00021917,2]
[328387789,1717317043828,-500.0,0.00021917,2]
[328387790,1717317043838,-500.0,0.00021917,2]
[328387791,1717317043847,-500.0,0.00021917,2]
[328387792,1717317043856,-1203.83,0.00021917,2]
[328387793,1717317043866,-584.09,0.00021917,2]
[328387794,1717317043875,-500.0,0.00021917,2]
[328387795,1717317043884,-500.0,0.00021917,2]
[328387796,1717317043893,-500.0,0.00021917,2]
[328387797,1717317043903,-500.0,0.00021917,2]
[328387798,1717317043912,-2418.82,0.00021917,2]
[328387799,1717317043921,-1622.41,0.00021917,2]
[328387800,1717317043931,-500.0,0.00021917,2]
[328387801,1717317043940,-500.0,0.00021917,2]
[328387802,1717317043949,-500.0,0.00021917,2]
[328387803,1717317043959,-500.0,0.00021917,2]
[328387804,1717317043967,-975.81,0.00021917,2]
[328387805,1717317043976,-2443.81,0.00021917,2]
[328387806,1717317043986,-500.0,0.00021917,2]
[328387807,1717317043995,-527.53,0.00021917,2]
[328387808,1717317044004,-589.63264807,0.00021917,2]
[328387809,1717317044013,-703.88,0.00021917,2]
[328387810,1717317044022,-500.0,0.00021917,2]
[328387811,1717317044031,-500.0,0.00021917,2]
[328387812,1717317044040,-500.0,0.00021917,2]
[328387813,1717317044049,-500.0,0.00021917,2]
[328387814,1717317044059,-500.0,0.00021917,2]
[328387815,1717317044068,-500.0,0.00021917,2]
[328387816,1717317044077,-500.0,0.00021917,2]
[328387817,1717317044087,-500.0,0.00021917,2]
[328387818,1717317044096,-500.0,0.00021917,2]
[328387819,1717317044105,-500.0,0.00021917,2]
[328387820,1717317044114,-545.96,0.00021917,2]
[328387821,1717317044124,-740.02,0.00021917,2]
[328387822,1717317044134,-870.48,0.00021917,2]
[328387823,1717317044144,-590.1508004,0.00021917,2]
[328387824,1717317044153,-500.0,0.00021917,2]
[328387825,1717317044162,-151.0,0.00021917,2]
[328387826,1717317044172,-151.0,0.00021917,2]
[328387827,1717317044182,-500.0,0.00021917,2]
[328387828,1717317044192,-151.0,0.00021917,2]
[328387829,1717317044201,-528.14796443,0.00021917,2]
[328387830,1717317044210,-1902.72,0.00021917,2]
[328387831,1717317044220,-1455.37,0.00021917,2]
[328387832,1717317044229,-151.0,0.00021917,2]
[328387833,1717317044239,-151.0,0.00021917,2]
[328387834,1717317044248,-151.0,0.00021917,2]
[328387835,1717317044257,-500.0,0.00021917,2]
[328387836,1717317044268,-500.0,0.00021917,2]
[328387837,1717317044278,-590.52,0.00021917,2]
[328387838,1717317044287,-543.56,0.00021917,2]
[328387839,1717317044296,-500.0,0.00021917,2]
[328387840,1717317044306,-500.0,0.00021917,2]
[328387841,1717317044315,-500.0,0.00021917,2]
[328387842,1717317044325,-500.0,0.00021917,2]
[328387843,1717317044334,-574.29,0.00021917,2]
[328387844,1717317044344,-500.0,0.00021917,2]
[328387845,1717317044354,-500.0,0.00021917,2]
[328387846,1717317044363,-830.3,0.00021917,2]
[328387847,1717317044372,-500.0,0.00021917,2]
[328387848,1717317044382,-500.0,0.00021917,2]
[328387849,1717317044391,-698.48,0.00021917,2]
[328387850,1717317044401,-1234.56,0.00021917,2]
[328387851,1717317044410,-580.42202207,0.00021917,2]
[328387852,1717317044419,-750.5,0.00021917,2]
[328387853,1717317044429,-500.0,0.00021917,2]
[328387854,1717317044439,-604.79,0.00021917,2]
[328387855,1717317044448,-500.0,0.00021917,2]
[328387856,1717317044458,-200.05640738,0.00021917,2]
[328387857,1717317044467,-151.0,0.00021917,2]
[328387858,1717317044478,-500.0,0.00021917,2]
[328387859,1717317044487,-500.0,0.00021917,2]
[328387860,1717317044497,-500.0,0.00021917,2]
[328387861,1717317044508,-604.29,0.00021917,2]
[328387862,1717317044517,-577.03063155,0.00021917,2]
[328387863,1717317044527,-533.04,0.00021917,2]
[328387864,1717317044536,-500.0,0.00021917,2]
[328387865,1717317044546,-154.001584,0.00021917,2]
[328387866,1717317044556,-500.0,0.00021917,2]
[328387867,1717317044565,-154.001584,0.00021917,2]
[328387868,1717317044575,-154.001584,0.00021917,2]
[328387869,1717317044673,-320.72451769,0.00021917,2]
[328387870,1717317044684,-154.001584,0.00021917,2]
[328387871,1717317044693,-154.001584,0.00021917,2]
[328387872,1717317044703,-154.001584,0.00021917,2]
[328387873,1717317044712,-500.0,0.00021917,2]
[328387874,1717317044722,-500.0,0.00021917,2]
[328387875,1717317044732,-500.0,0.00021917,2]
[328387876,1717317044741,-1131.43,0.00021917,2]
[328387877,1717317044750,-500.0,0.00021917,2]
[328387878,1717317044761,-531.42,0.00021917,2]
[328387879,1717317044770,-151.0,0.00021917,2]
[328387880,1717317044779,-151.0,0.00021917,2]
[328387881,1717317044789,-151.0,0.00021917,2]
[328387882,1717317044798,-500.0,0.00021917,2]
[328387883,1717317044808,-500.0,0.00021917,2]
[328387884,1717317044817,-500.0,0.00021917,2]
[328387885,1717317044827,-500.0,0.00021917,2]